[Event "*** Titled Tuesday Blitz"]
[Site "Chess.com"]
[Date "2021.03.02"]
[Round "7"]
[White "Marty435"]
[Black "anon102030"]
[Result "0-1"]
[WhiteElo "2547"]
[BlackElo "2706"]
[TimeControl "180+1"]
[EndTime "11:19:30 PST"]
[Termination "anon102030 won on time"]

1. e4 {[%clk 0:03:00.9]} 1... e5 {[%clk 0:02:59.6]} 2. Nf3 {[%clk 0:03:01.4]}
2... Nc6 {[%clk 0:02:59.9]} 3. Bc4 {[%clk 0:03:02.1]} 3... Bc5 {[%clk
0:02:59.5]} 4. c3 {[%clk 0:03:02.4]} 4... Nf6 {[%clk 0:02:59.3]} 5. d4 {[%clk
0:03:03]} 5... exd4 {[%clk 0:02:59.9]} 6. e5 {[%clk 0:03:03.9]} 6... d5 {[%clk
0:02:59.3]} 7. Bb5 {[%clk 0:03:04.4]} 7... Ne4 {[%clk 0:02:59.9]} 8. cxd4 {[%clk
0:03:05.1]} 8... Bb6 {[%clk 0:02:59.3]} 9. Nc3 {[%clk 0:03:04.2]} 9... Bg4
{[%clk 0:02:54.5]} 10. Be3 {[%clk 0:03:04.5]} 10... O-O {[%clk 0:02:52.7]} 11.
h3 {[%clk 0:03:04.8]} 11... Bh5 {[%clk 0:02:42.3]} 12. Qc2 {[%clk 0:03:05.1]}
12... Bg6 {[%clk 0:02:40.4]} 13. Qb3 {[%clk 0:03:05]} 13... Ne7 {[%clk
0:02:13.8]} 14. O-O {[%clk 0:03:04.1]} 14... c6 {[%clk 0:02:14.4]} 15. Bd3
{[%clk 0:03:04.4]} 15... Nd2 {[%clk 0:01:54.1]} 16. Nxd2 {[%clk 0:03:03.8]}
16... Bxd3 {[%clk 0:01:54.9]} 17. Rfe1 {[%clk 0:03:04.7]} 17... Bg6 {[%clk
0:01:51]} 18. Na4 {[%clk 0:03:04.6]} 18... Nf5 {[%clk 0:01:49.9]} 19. Nf3 {[%clk
0:03:05]} 19... Re8 {[%clk 0:01:48.4]} 20. Rac1 {[%clk 0:02:29.2]} 20... h6
{[%clk 0:01:44.2]} 21. a3 {[%clk 0:02:17.8]} 21... Ba5 {[%clk 0:01:29.5]} 22.
Re2 {[%clk 0:02:10.3]} 22... Qe7 {[%clk 0:01:22.8]} 23. Bd2 {[%clk 0:02:00.9]}
23... Bxd2 {[%clk 0:01:20.4]} 24. Rxd2 {[%clk 0:02:01.8]} 24... Rab8 {[%clk
0:01:10.4]} 25. Kh2 {[%clk 0:01:46.7]} 25... Nh4 {[%clk 0:01:03.2]} 26. Nxh4
{[%clk 0:01:22.4]} 26... Qxh4 {[%clk 0:01:04.1]} 27. Qg3 {[%clk 0:01:22.7]}
27... Qe7 {[%clk 0:01:02.1]} 28. f4 {[%clk 0:01:18.9]} 28... Rbc8 {[%clk
0:00:58.1]} 29. Qf2 {[%clk 0:01:14.1]} 29... Bf5 {[%clk 0:00:51.9]} 30. Nc3
{[%clk 0:01:11.1]} 30... h5 {[%clk 0:00:48.7]} 31. g3 {[%clk 0:01:07.7]} 31...
Qd7 {[%clk 0:00:47]} 32. Qg2 {[%clk 0:01:05.6]} 32... b6 {[%clk 0:00:44.8]} 33.
Rg1 {[%clk 0:01:05.1]} 33... Re6 {[%clk 0:00:37.2]} 34. Nd1 {[%clk 0:00:42.8]}
34... Rg6 {[%clk 0:00:34.4]} 35. Nf2 {[%clk 0:00:42.9]} 35... Rd8 {[%clk
0:00:32.4]} 36. g4 {[%clk 0:00:40.4]} 36... hxg4 {[%clk 0:00:30.6]} 37. hxg4
{[%clk 0:00:41.3]} 37... Be4 {[%clk 0:00:25]} 38. Nxe4 {[%clk 0:00:26.1]} 38...
dxe4 {[%clk 0:00:25.9]} 39. f5 {[%clk 0:00:26.3]} 39... Rh6+ {[%clk 0:00:24.9]}
40. Kg3 {[%clk 0:00:26.9]} 40... Qe7 {[%clk 0:00:24.3]} 41. Rh1 {[%clk 0:00:16]}
41... Qg5 {[%clk 0:00:20.9]} 42. Rxh6 {[%clk 0:00:13.1]} 42... Qe3+ {[%clk
0:00:19.5]} 43. Kh2 {[%clk 0:00:13.3]} 43... Qxh6+ {[%clk 0:00:18.6]} 44. Kg1
{[%clk 0:00:13]} 44... Qe3+ {[%clk 0:00:17.4]} 45. Qf2 {[%clk 0:00:13.3]} 45...
Qg5 {[%clk 0:00:11.7]} 46. Qg2 {[%clk 0:00:03]} 46... e3 {[%clk 0:00:11.7]} 47.
Rd3 {[%clk 0:00:02.8]} 47... Qf4 {[%clk 0:00:10]} 48. Qe2 {[%clk 0:00:01.8]}
48... Rxd4 {[%clk 0:00:10.4]} 49. Rxe3 {[%clk 0:00:01.4]} 49... Rd1+ {[%clk
0:00:07.8]} 50. Kg2 {[%clk 0:00:01]} 50... Rd4 {[%clk 0:00:06.6]} 51. Rf3 {[%clk
0:00:01.1]} 51... Qxg4+ {[%clk 0:00:06.5]} 52. Kf2 {[%clk 0:00:02]} 52... Qh4+
{[%clk 0:00:06.6]} 53. Kg2 {[%clk 0:00:02.4]} 53... Re4 {[%clk 0:00:06.8]} 54.
Qf2 {[%clk 0:00:02.2]} 54... Qg4+ {[%clk 0:00:05.3]} 55. Rg3 {[%clk 0:00:01.7]}
55... Qh4 {[%clk 0:00:05.5]} 56. Rxg7+ {[%clk 0:00:01.5]} 56... Kxg7 {[%clk
0:00:05.1]} 57. f6+ {[%clk 0:00:02.4]} 57... Kg6 {[%clk 0:00:04]} 58. Qf5+
{[%clk 0:00:03.3]} 58... Kxf5 {[%clk 0:00:03.6]} 0-1

[Event "*** Titled Tuesday Blitz"]
[Site "Chess.com"]
[Date "2021.03.02"]
[Round "7"]
[White "XxPetroffsxX"]
[Black "chesslh19"]
[Result "0-1"]
[WhiteElo "2139"]
[BlackElo "2243"]
[TimeControl "180+1"]
[EndTime "11:19:30 PST"]
[Termination "chesslh19 won on time"]

1. d4 {[%clk 0:02:59.9]} 1... Nf6 {[%clk 0:02:59.3]} 2. c4 {[%clk 0:02:58.7]}
2... e6 {[%clk 0:02:59.2]} 3. Nc3 {[%clk 0:02:58.4]} 3... d5 {[%clk 0:02:59.8]}
4. cxd5 {[%clk 0:02:56.1]} 4... exd5 {[%clk 0:03:00.7]} 5. Bg5 {[%clk
0:02:55.8]} 5... c6 {[%clk 0:02:59.1]} 6. Qc2 {[%clk 0:02:56]} 6... Be7 {[%clk
0:02:56.6]} 7. e3 {[%clk 0:02:55.4]} 7... Nbd7 {[%clk 0:02:56.7]} 8. Bd3 {[%clk
0:02:46.3]} 8... O-O {[%clk 0:02:55.7]} 9. Nge2 {[%clk 0:02:46.1]} 9... Re8
{[%clk 0:02:55.9]} 10. O-O {[%clk 0:02:44.5]} 10... Nf8 {[%clk 0:02:56.4]} 11.
Bxf6 {[%clk 0:02:40.9]} 11... Bxf6 {[%clk 0:02:56.1]} 12. b4 {[%clk 0:02:41.4]}
12... Be6 {[%clk 0:02:29.7]} 13. Rab1 {[%clk 0:02:34.4]} 13... a6 {[%clk
0:02:27.1]} 14. a4 {[%clk 0:02:32.7]} 14... Ng6 {[%clk 0:01:51.7]} 15. b5 {[%clk
0:02:27.4]} 15... axb5 {[%clk 0:01:52.6]} 16. axb5 {[%clk 0:02:26.6]} 16... Be7
{[%clk 0:01:12.2]} 17. bxc6 {[%clk 0:02:24.8]} 17... bxc6 {[%clk 0:01:13.1]} 18.
Ng3 {[%clk 0:02:19.6]} 18... Bd6 {[%clk 0:01:09.4]} 19. f4 {[%clk 0:02:16]}
19... Bd7 {[%clk 0:01:06.3]} 20. f5 {[%clk 0:02:01.6]} 20... Nf8 {[%clk
0:00:59]} 21. e4 {[%clk 0:01:57.7]} 21... dxe4 {[%clk 0:00:57.9]} 22. Ngxe4
{[%clk 0:01:56.2]} 22... Qc7 {[%clk 0:00:47.1]} 23. h3 {[%clk 0:01:38.3]} 23...
Rab8 {[%clk 0:00:40.4]} 24. f6 {[%clk 0:01:30.5]} 24... g6 {[%clk 0:00:38.2]}
25. Rxb8 {[%clk 0:01:20.4]} 25... Rxb8 {[%clk 0:00:37.7]} 26. Nc5 {[%clk
0:00:56.5]} 26... Bxc5 {[%clk 0:00:32.5]} 27. dxc5 {[%clk 0:00:54.6]} 27... Ne6
{[%clk 0:00:32.4]} 28. Ne4 {[%clk 0:00:52.8]} 28... Qe5 {[%clk 0:00:27.8]} 29.
Qd2 {[%clk 0:00:37.7]} 29... Rb2 {[%clk 0:00:21.8]} 30. Qe3 {[%clk 0:00:24.4]}
30... Qd4 {[%clk 0:00:19.9]} 31. Qxd4 {[%clk 0:00:20.9]} 31... Nxd4 {[%clk
0:00:20.8]} 32. Nd6 {[%clk 0:00:19.6]} 32... Be6 {[%clk 0:00:16.4]} 33. Be4
{[%clk 0:00:17.9]} 33... Ne2+ {[%clk 0:00:14.8]} 34. Kh2 {[%clk 0:00:16.7]}
34... Nd4 {[%clk 0:00:13.8]} 35. Ne8 {[%clk 0:00:11.4]} 35... Kf8 {[%clk
0:00:11.8]} 36. Nc7 {[%clk 0:00:11]} 36... Rb7 {[%clk 0:00:06]} 37. Nxe6+ {[%clk
0:00:10.6]} 37... fxe6 {[%clk 0:00:06.4]} 38. Rd1 {[%clk 0:00:10]} 38... e5
{[%clk 0:00:06.2]} 39. Ra1 {[%clk 0:00:07.5]} 39... Kf7 {[%clk 0:00:05]} 40. Ra6
{[%clk 0:00:06.8]} 40... Kxf6 {[%clk 0:00:04]} 41. Bxc6 {[%clk 0:00:06.8]} 41...
Nxc6 {[%clk 0:00:04.3]} 42. Rxc6+ {[%clk 0:00:06.8]} 42... Kf5 {[%clk
0:00:04.8]} 43. Rd6 {[%clk 0:00:06.5]} 43... e4 {[%clk 0:00:04.3]} 44. c6 {[%clk
0:00:06.8]} 44... Rc7 {[%clk 0:00:04.6]} 45. Kg3 {[%clk 0:00:04.4]} 45... Ke5
{[%clk 0:00:04.5]} 46. Rd7 {[%clk 0:00:04.1]} 46... Rxc6 {[%clk 0:00:04.7]} 47.
Rxh7 {[%clk 0:00:02.6]} 47... Rf6 {[%clk 0:00:04.4]} 48. Re7+ {[%clk 0:00:01.3]}
48... Kd4 {[%clk 0:00:04.6]} 0-1

[Event "*** Titled Tuesday Blitz"]
[Site "Chess.com"]
[Date "2021.03.02"]
[Round "7"]
[White "hermionegrangermagic"]
[Black "Politov_Pavel"]
[Result "0-1"]
[WhiteElo "2581"]
[BlackElo "2426"]
[TimeControl "180+1"]
[EndTime "11:19:31 PST"]
[Termination "Politov_Pavel won by resignation"]

1. e4 {[%clk 0:02:47.5]} 1... e5 {[%clk 0:03:00.1]} 2. Nf3 {[%clk 0:02:46.1]}
2... Nc6 {[%clk 0:03:00.1]} 3. d4 {[%clk 0:02:46.1]} 3... exd4 {[%clk
0:02:57.6]} 4. Bc4 {[%clk 0:02:43.9]} 4... Nf6 {[%clk 0:02:52.4]} 5. e5 {[%clk
0:02:44.2]} 5... d5 {[%clk 0:02:51.9]} 6. Bb5 {[%clk 0:02:44.7]} 6... Ne4 {[%clk
0:02:48.7]} 7. Nxd4 {[%clk 0:02:44.7]} 7... Qh4 {[%clk 0:02:13.8]} 8. O-O {[%clk
0:02:38.5]} 8... Bc5 {[%clk 0:02:11.9]} 9. Be3 {[%clk 0:02:34]} 9... O-O {[%clk
0:01:58.3]} 10. Nf3 {[%clk 0:02:16.2]} 10... Qd8 {[%clk 0:01:42.4]} 11. Bxc5
{[%clk 0:02:01.6]} 11... Nxc5 {[%clk 0:01:43.3]} 12. c4 {[%clk 0:01:56.7]} 12...
dxc4 {[%clk 0:01:37.6]} 13. Bxc4 {[%clk 0:01:51.1]} 13... Bg4 {[%clk 0:01:26.4]}
14. Be2 {[%clk 0:01:36.9]} 14... Qxd1 {[%clk 0:01:18.1]} 15. Bxd1 {[%clk
0:01:36]} 15... Rfe8 {[%clk 0:01:05.6]} 16. Nbd2 {[%clk 0:01:14.1]} 16... Nd3
{[%clk 0:01:00.3]} 17. h3 {[%clk 0:01:02.4]} 17... Bh5 {[%clk 0:00:53.7]} 18.
Bc2 {[%clk 0:00:49.6]} 18... Ndxe5 {[%clk 0:00:50.3]} 19. Nxe5 {[%clk
0:00:47.9]} 19... Rxe5 {[%clk 0:00:49.9]} 20. Rfe1 {[%clk 0:00:45.1]} 20... Rae8
{[%clk 0:00:47.4]} 21. Re4 {[%clk 0:00:40.2]} 21... Bg6 {[%clk 0:00:38.7]} 22.
Rxe5 {[%clk 0:00:40.2]} 22... Rxe5 {[%clk 0:00:39.6]} 23. Bxg6 {[%clk
0:00:39.8]} 23... hxg6 {[%clk 0:00:40.5]} 24. Kf1 {[%clk 0:00:33.9]} 24... Nd4
{[%clk 0:00:36.3]} 25. Rc1 {[%clk 0:00:32.1]} 25... c6 {[%clk 0:00:30.3]} 26.
Rc4 {[%clk 0:00:29.9]} 26... Rd5 {[%clk 0:00:26.5]} 27. Ne4 {[%clk 0:00:26.9]}
27... Ne6 {[%clk 0:00:22.9]} 28. Rc1 {[%clk 0:00:20.2]} 28... Rb5 {[%clk
0:00:18.3]} 29. b3 {[%clk 0:00:20]} 29... Ra5 {[%clk 0:00:17.6]} 30. a4 {[%clk
0:00:19.6]} 30... Re5 {[%clk 0:00:14.8]} 31. f3 {[%clk 0:00:19.4]} 31... f5
{[%clk 0:00:13.5]} 32. Nd2 {[%clk 0:00:19.6]} 32... Kf7 {[%clk 0:00:09.7]} 33.
Nc4 {[%clk 0:00:19]} 33... Rd5 {[%clk 0:00:09.1]} 34. a5 {[%clk 0:00:18.7]}
34... a6 {[%clk 0:00:06.3]} 35. Re1 {[%clk 0:00:17.4]} 35... Kf6 {[%clk
0:00:04.6]} 36. Kf2 {[%clk 0:00:15.2]} 36... Rb5 {[%clk 0:00:05]} 37. Nd6 {[%clk
0:00:09.8]} 37... Rxb3 {[%clk 0:00:02.3]} 38. Ne8+ {[%clk 0:00:10]} 38... Kf7
{[%clk 0:00:02.8]} 39. Nd6+ {[%clk 0:00:09.8]} 39... Ke7 {[%clk 0:00:03.2]} 40.
Nc8+ {[%clk 0:00:09.4]} 40... Kd7 {[%clk 0:00:03.4]} 41. Nb6+ {[%clk 0:00:09.6]}
41... Kd6 {[%clk 0:00:03.8]} 42. Nc4+ {[%clk 0:00:09.6]} 42... Kc5 {[%clk
0:00:03.9]} 43. Nb6 {[%clk 0:00:08.7]} 43... Nd4 {[%clk 0:00:03.9]} 44. Rc1+
{[%clk 0:00:08.3]} 44... Kb5 {[%clk 0:00:03.9]} 45. Nd7 {[%clk 0:00:06.3]} 45...
f4 {[%clk 0:00:04]} 46. Rc5+ {[%clk 0:00:05.6]} 46... Kb4 {[%clk 0:00:03.6]} 47.
Re5 {[%clk 0:00:05.8]} 47... Rb2+ {[%clk 0:00:04.5]} 48. Kf1 {[%clk 0:00:05.8]}
48... Nb5 {[%clk 0:00:05]} 49. Re4+ {[%clk 0:00:05.7]} 49... Kxa5 {[%clk
0:00:05]} 50. Nc5 {[%clk 0:00:06]} 50... Rc2 {[%clk 0:00:05]} 51. Nb3+ {[%clk
0:00:05.9]} 51... Kb6 {[%clk 0:00:05.9]} 52. Rxf4 {[%clk 0:00:05.8]} 52... a5
{[%clk 0:00:06.5]} 53. Rg4 {[%clk 0:00:04.5]} 53... Rb2 {[%clk 0:00:06.9]} 54.
Nd4 {[%clk 0:00:02.6]} 54... Nxd4 {[%clk 0:00:06.9]} 55. Rxd4 {[%clk 0:00:03.5]}
55... Rb4 {[%clk 0:00:07]} 56. Rd6 {[%clk 0:00:03.6]} 56... a4 {[%clk
0:00:07.3]} 57. Rxg6 {[%clk 0:00:03.9]} 57... a3 {[%clk 0:00:07.9]} 58. Rxg7
{[%clk 0:00:03.8]} 58... a2 {[%clk 0:00:08.4]} 59. Kf2 {[%clk 0:00:04.4]} 59...
a1=Q {[%clk 0:00:08.8]} 60. h4 {[%clk 0:00:04.3]} 60... Qxg7 {[%clk 0:00:08.8]}
0-1

[Event "*** Titled Tuesday Blitz"]
[Site "Chess.com"]
[Date "2021.03.02"]
[Round "7"]
[White "FredyMatsuura"]
[Black "C_K_G"]
[Result "1-0"]
[WhiteElo "2326"]
[BlackElo "2009"]
[TimeControl "180+1"]
[EndTime "11:19:31 PST"]
[Termination "FredyMatsuura won on time"]

1. d4 {[%clk 0:03:00.9]} 1... d5 {[%clk 0:02:57.4]} 2. Nf3 {[%clk 0:02:59.2]}
2... e6 {[%clk 0:02:56.3]} 3. c4 {[%clk 0:02:57]} 3... Nf6 {[%clk 0:02:56.1]} 4.
Nc3 {[%clk 0:02:57]} 4... c6 {[%clk 0:02:55.3]} 5. cxd5 {[%clk 0:02:55.5]} 5...
exd5 {[%clk 0:02:53.9]} 6. Bg5 {[%clk 0:02:55.2]} 6... Bd6 {[%clk 0:02:50]} 7.
Qc2 {[%clk 0:02:53.8]} 7... O-O {[%clk 0:02:49.3]} 8. e3 {[%clk 0:02:53.1]} 8...
h6 {[%clk 0:02:46.4]} 9. Bh4 {[%clk 0:02:47.7]} 9... Re8 {[%clk 0:02:45.8]} 10.
Bd3 {[%clk 0:02:46.2]} 10... Bg4 {[%clk 0:02:42.4]} 11. h3 {[%clk 0:02:31.8]}
11... Bd7 {[%clk 0:02:32.1]} 12. O-O {[%clk 0:02:18.8]} 12... Be7 {[%clk
0:02:20.6]} 13. Ne5 {[%clk 0:02:17.5]} 13... Be6 {[%clk 0:02:14.6]} 14. f4
{[%clk 0:02:16]} 14... Bc8 {[%clk 0:01:59.5]} 15. Rae1 {[%clk 0:02:07.8]} 15...
Nbd7 {[%clk 0:01:55.7]} 16. Kh1 {[%clk 0:01:47.8]} 16... Nh5 {[%clk 0:01:42.3]}
17. Bf2 {[%clk 0:01:34.3]} 17... Bh4 {[%clk 0:01:31.8]} 18. Nxf7 {[%clk
0:01:26.4]} 18... Qf6 {[%clk 0:01:26.7]} 19. Ne5 {[%clk 0:01:21.3]} 19... Bxf2
{[%clk 0:01:22.2]} 20. Qxf2 {[%clk 0:01:19.2]} 20... Nxe5 {[%clk 0:01:09]} 21.
fxe5 {[%clk 0:01:18.6]} 21... Qxf2 {[%clk 0:01:08.5]} 22. Rxf2 {[%clk
0:01:19.1]} 22... Be6 {[%clk 0:01:08.4]} 23. Bg6 {[%clk 0:01:11.6]} 23... Ng3+
{[%clk 0:00:38]} 24. Kh2 {[%clk 0:01:11]} 24... Ne4 {[%clk 0:00:37.6]} 25. Nxe4
{[%clk 0:01:10.8]} 25... dxe4 {[%clk 0:00:37.9]} 26. Bxe8 {[%clk 0:01:11]} 26...
Rxe8 {[%clk 0:00:37.9]} 27. a3 {[%clk 0:01:10.7]} 27... b5 {[%clk 0:00:34.2]}
28. Rc1 {[%clk 0:01:09.5]} 28... Bd5 {[%clk 0:00:31]} 29. g4 {[%clk 0:01:08.9]}
29... a5 {[%clk 0:00:30.7]} 30. Rfc2 {[%clk 0:01:07]} 30... Re6 {[%clk
0:00:28.4]} 31. Kg3 {[%clk 0:01:05.3]} 31... a4 {[%clk 0:00:28.2]} 32. Rf2
{[%clk 0:01:02.6]} 32... Bc4 {[%clk 0:00:21.4]} 33. Rf4 {[%clk 0:01:02.1]} 33...
Bd5 {[%clk 0:00:20.5]} 34. h4 {[%clk 0:00:57.8]} 34... Kh7 {[%clk 0:00:18.3]}
35. g5 {[%clk 0:00:55.3]} 35... hxg5 {[%clk 0:00:16.5]} 36. hxg5 {[%clk
0:00:55.1]} 36... Kg6 {[%clk 0:00:16.3]} 37. Kg4 {[%clk 0:00:54.2]} 37... Re8
{[%clk 0:00:11.6]} 38. Rcf1 {[%clk 0:00:52.4]} 38... Rh8 {[%clk 0:00:10]} 39.
Kg3 {[%clk 0:00:39.9]} 39... Be6 {[%clk 0:00:08.2]} 40. Rg1 {[%clk 0:00:34.7]}
40... Rh3+ {[%clk 0:00:07.2]} 41. Kf2 {[%clk 0:00:33.9]} 41... Rh2+ {[%clk
0:00:06.3]} 42. Rg2 {[%clk 0:00:33.7]} 42... Rh1 {[%clk 0:00:05.7]} 43. Rf8
{[%clk 0:00:31.3]} 43... Rb1 {[%clk 0:00:05.5]} 44. Kg3 {[%clk 0:00:30.9]} 44...
Re1 {[%clk 0:00:03.5]} 45. Kf2 {[%clk 0:00:23.5]} 45... Rc1 {[%clk 0:00:02.7]}
46. Re8 {[%clk 0:00:20.5]} 46... Bd5 {[%clk 0:00:03.2]} 47. e6 {[%clk
0:00:20.3]} 47... Rb1 {[%clk 0:00:02.7]} 48. Kg3 {[%clk 0:00:19.5]} 48... Bc4
{[%clk 0:00:02.3]} 49. Kf4 {[%clk 0:00:18.9]} 1-0

[Event "*** Titled Tuesday Blitz"]
[Site "Chess.com"]
[Date "2021.03.02"]
[Round "7"]
[White "GigaQuparadze"]
[Black "RobertoJBM"]
[Result "1/2-1/2"]
[WhiteElo "2953"]
[BlackElo "2723"]
[TimeControl "180+1"]
[EndTime "11:19:32 PST"]
[Termination "Game drawn by repetition"]

1. e4 {[%clk 0:03:00.9]} 1... c6 {[%clk 0:02:59.6]} 2. d4 {[%clk 0:02:56.1]}
2... d5 {[%clk 0:02:59.7]} 3. Nc3 {[%clk 0:02:57]} 3... dxe4 {[%clk 0:02:59.6]}
4. Nxe4 {[%clk 0:02:57.9]} 4... Nd7 {[%clk 0:02:59.6]} 5. Qe2 {[%clk 0:02:52.7]}
5... Ndf6 {[%clk 0:02:57.7]} 6. Ng5 {[%clk 0:02:53]} 6... Qxd4 {[%clk
0:02:48.9]} 7. N1f3 {[%clk 0:02:52.7]} 7... Qb6 {[%clk 0:02:46.7]} 8. Ne5 {[%clk
0:02:51]} 8... Nh6 {[%clk 0:02:46.5]} 9. g3 {[%clk 0:02:47.1]} 9... Bf5 {[%clk
0:02:41.5]} 10. Bg2 {[%clk 0:02:46.7]} 10... e6 {[%clk 0:02:35.1]} 11. O-O
{[%clk 0:02:45.8]} 11... Qc7 {[%clk 0:02:31.8]} 12. Bf4 {[%clk 0:02:41.4]} 12...
Bd6 {[%clk 0:02:24]} 13. Rad1 {[%clk 0:02:37.7]} 13... Rd8 {[%clk 0:02:24.4]}
14. Rxd6 {[%clk 0:02:30.3]} 14... Qxd6 {[%clk 0:02:15]} 15. Nexf7 {[%clk
0:02:27.5]} 15... Nxf7 {[%clk 0:02:14.8]} 16. Bxd6 {[%clk 0:02:12.2]} 16... Rxd6
{[%clk 0:02:11.1]} 17. Ne4 {[%clk 0:02:11.4]} 17... Nxe4 {[%clk 0:02:07.2]} 18.
Bxe4 {[%clk 0:02:12.3]} 18... O-O {[%clk 0:02:07.3]} 19. Bxf5 {[%clk 0:02:12]}
19... exf5 {[%clk 0:02:08.2]} 20. Rd1 {[%clk 0:02:04.6]} 20... Rxd1+ {[%clk
0:02:01.2]} 21. Qxd1 {[%clk 0:02:05.5]} 21... Rd8 {[%clk 0:02:00.6]} 22. Qf3
{[%clk 0:02:05.4]} 22... g6 {[%clk 0:01:59.7]} 23. Qb3 {[%clk 0:02:03.8]} 23...
Rd7 {[%clk 0:01:59.3]} 24. Qe3 {[%clk 0:02:00.3]} 24... Kf8 {[%clk 0:01:50.5]}
25. Qxa7 {[%clk 0:01:59.7]} 25... Ke7 {[%clk 0:01:51]} 26. a4 {[%clk 0:01:58.8]}
26... Ne5 {[%clk 0:01:48.8]} 27. Qe3 {[%clk 0:01:57.4]} 27... Kf6 {[%clk
0:01:47.4]} 28. h3 {[%clk 0:01:57.3]} 28... g5 {[%clk 0:01:43.2]} 29. Qc3 {[%clk
0:01:56.7]} 29... f4 {[%clk 0:01:41.2]} 30. gxf4 {[%clk 0:01:56.5]} 30... gxf4
{[%clk 0:01:42.1]} 31. a5 {[%clk 0:01:55.1]} 31... Kf5 {[%clk 0:01:40.8]} 32. h4
{[%clk 0:01:54.3]} 32... h5 {[%clk 0:01:40.1]} 33. Qh3+ {[%clk 0:01:53]} 33...
Ke4 {[%clk 0:01:28.4]} 34. Qe6 {[%clk 0:01:51.1]} 34... Rd1+ {[%clk 0:01:20.4]}
35. Kh2 {[%clk 0:01:47.9]} 35... Rd2 {[%clk 0:01:18.2]} 36. Kg2 {[%clk
0:01:45.9]} 36... Rxc2 {[%clk 0:01:13.8]} 37. Qe8 {[%clk 0:01:45.1]} 37... Rxb2
{[%clk 0:01:06.4]} 38. Qxh5 {[%clk 0:01:44.8]} 38... Nd3 {[%clk 0:01:03.7]} 39.
Qh7+ {[%clk 0:01:44.4]} 39... Kd4 {[%clk 0:01:03.8]} 40. h5 {[%clk 0:01:41.5]}
40... Rxf2+ {[%clk 0:01:01]} 41. Kh3 {[%clk 0:01:41.7]} 41... Rf3+ {[%clk
0:00:56.8]} 42. Kh4 {[%clk 0:01:40.8]} 42... Rf1 {[%clk 0:00:54.9]} 43. h6
{[%clk 0:01:37.1]} 43... f3 {[%clk 0:00:54.2]} 44. Qg7+ {[%clk 0:01:32.5]} 44...
Ne5 {[%clk 0:00:52.3]} 45. h7 {[%clk 0:01:28.7]} 45... Rh1+ {[%clk 0:00:51.3]}
46. Kg3 {[%clk 0:01:28.3]} 46... Rg1+ {[%clk 0:00:50.4]} 47. Kf2 {[%clk
0:01:23]} 47... Rxg7 {[%clk 0:00:51.3]} 48. h8=Q {[%clk 0:01:22.5]} 48... Rg2+
{[%clk 0:00:50.3]} 49. Kf1 {[%clk 0:01:22.9]} 49... Rb2 {[%clk 0:00:36.5]} 50.
Qh4+ {[%clk 0:01:21.8]} 50... Kd5 {[%clk 0:00:35.8]} 51. Qh5 {[%clk 0:00:39.5]}
51... Rb5 {[%clk 0:00:31.1]} 52. Qe8 {[%clk 0:00:39]} 52... Rb2 {[%clk
0:00:22.7]} 53. Qf8 {[%clk 0:00:33.4]} 53... Ke4 {[%clk 0:00:18]} 54. Qa3 {[%clk
0:00:32.9]} 54... Rb1+ {[%clk 0:00:16.2]} 55. Kf2 {[%clk 0:00:33.1]} 55... Nd3+
{[%clk 0:00:16]} 56. Kg3 {[%clk 0:00:33.3]} 56... Rg1+ {[%clk 0:00:15.9]} 57.
Kh2 {[%clk 0:00:33.4]} 57... Rg2+ {[%clk 0:00:16.3]} 58. Kh3 {[%clk 0:00:31.1]}
58... Re2 {[%clk 0:00:15.9]} 59. Qe7+ {[%clk 0:00:26.4]} 59... Kd4 {[%clk
0:00:16.3]} 60. Qd7+ {[%clk 0:00:23.7]} 60... Ke3 {[%clk 0:00:16.5]} 61. Qe7+
{[%clk 0:00:23.9]} 61... Kd4 {[%clk 0:00:15.9]} 62. Qd7+ {[%clk 0:00:23.9]}
62... Ke4 {[%clk 0:00:15.3]} 63. Qe7+ {[%clk 0:00:20.2]} 63... Kd4 {[%clk
0:00:14.9]} 1/2-1/2

[Event "*** Titled Tuesday Blitz"]
[Site "Chess.com"]
[Date "2021.03.02"]
[Round "7"]
[White "Niktlt"]
[Black "MuhittinBuker"]
[Result "0-1"]
[WhiteElo "2389"]
[BlackElo "2142"]
[TimeControl "180+1"]
[EndTime "11:19:34 PST"]
[Termination "MuhittinBuker won by resignation"]

1. c4 {[%clk 0:03:00.9]} 1... Nf6 {[%clk 0:02:59]} 2. Nc3 {[%clk 0:03:00.3]}
2... e6 {[%clk 0:02:59]} 3. e4 {[%clk 0:03:00.1]} 3... e5 {[%clk 0:02:58.2]} 4.
Nf3 {[%clk 0:02:59.4]} 4... d6 {[%clk 0:02:58.3]} 5. d4 {[%clk 0:02:56.5]} 5...
exd4 {[%clk 0:02:57.2]} 6. Nxd4 {[%clk 0:02:57.4]} 6... Be7 {[%clk 0:02:56.8]}
7. g3 {[%clk 0:02:57.3]} 7... O-O {[%clk 0:02:56.9]} 8. Bg2 {[%clk 0:02:57.2]}
8... Bd7 {[%clk 0:02:55.8]} 9. O-O {[%clk 0:02:57.1]} 9... Nc6 {[%clk
0:02:55.7]} 10. b3 {[%clk 0:02:56.5]} 10... Nxd4 {[%clk 0:02:55.1]} 11. Qxd4
{[%clk 0:02:57.4]} 11... Bc6 {[%clk 0:02:55.4]} 12. Bb2 {[%clk 0:02:57.4]} 12...
Ne8 {[%clk 0:02:46.3]} 13. Rad1 {[%clk 0:02:51.3]} 13... Bf6 {[%clk 0:02:45.6]}
14. Qd2 {[%clk 0:02:51.5]} 14... Qe7 {[%clk 0:02:44.1]} 15. Rfe1 {[%clk
0:02:50.4]} 15... g6 {[%clk 0:02:38.9]} 16. Nd5 {[%clk 0:02:40.7]} 16... Bxd5
{[%clk 0:02:38.1]} 17. exd5 {[%clk 0:02:41.6]} 17... Qd8 {[%clk 0:02:37.9]} 18.
Re2 {[%clk 0:02:35.2]} 18... Bxb2 {[%clk 0:02:36.3]} 19. Qxb2 {[%clk 0:02:36.1]}
19... Qf6 {[%clk 0:02:35.4]} 20. Qa3 {[%clk 0:02:35.6]} 20... Ng7 {[%clk
0:02:34.1]} 21. Bh3 {[%clk 0:02:35.9]} 21... Rfe8 {[%clk 0:02:32.8]} 22. Rde1
{[%clk 0:02:35.9]} 22... a6 {[%clk 0:02:26.9]} 23. Qb4 {[%clk 0:02:35.4]} 23...
b6 {[%clk 0:02:25.8]} 24. Rxe8+ {[%clk 0:02:30]} 24... Rxe8 {[%clk 0:02:22.1]}
25. Rxe8+ {[%clk 0:02:29.8]} 25... Nxe8 {[%clk 0:02:21.6]} 26. Qa4 {[%clk
0:02:30.7]} 26... Qe7 {[%clk 0:02:13.5]} 27. Qxa6 {[%clk 0:02:28.3]} 27... Qe1+
{[%clk 0:02:06.6]} 28. Bf1 {[%clk 0:02:28.6]} 28... h5 {[%clk 0:02:01]} 29. a4
{[%clk 0:02:02.7]} 29... Kg7 {[%clk 0:01:57.4]} 30. Qc8 {[%clk 0:01:16.1]} 30...
Nf6 {[%clk 0:01:28.9]} 31. Qxc7 {[%clk 0:01:14.9]} 31... Qb4 {[%clk 0:00:41]}
32. Qe7 {[%clk 0:01:12.1]} 32... Ng4 {[%clk 0:00:38.3]} 33. Qe4 {[%clk
0:00:58.8]} 33... Qxb3 {[%clk 0:00:32.8]} 34. Qd4+ {[%clk 0:00:57.8]} 34... f6
{[%clk 0:00:27]} 35. Be2 {[%clk 0:00:53.3]} 35... Ne5 {[%clk 0:00:18.9]} 36. Kg2
{[%clk 0:00:52.1]} 36... Qb4 {[%clk 0:00:17.6]} 37. h4 {[%clk 0:00:46]} 37...
Nd7 {[%clk 0:00:16.7]} 38. Qe4 {[%clk 0:00:38.7]} 38... Ne5 {[%clk 0:00:16]} 39.
f4 {[%clk 0:00:35.1]} 39... Ng4 {[%clk 0:00:15.9]} 40. Bxg4 {[%clk 0:00:27.8]}
40... hxg4 {[%clk 0:00:15.2]} 41. Qc2 {[%clk 0:00:28.1]} 41... f5 {[%clk
0:00:12.6]} 42. Kf2 {[%clk 0:00:26]} 42... Qc5+ {[%clk 0:00:12.7]} 43. Ke2
{[%clk 0:00:26.3]} 43... Kh6 {[%clk 0:00:12.2]} 44. Qc3 {[%clk 0:00:24.6]} 44...
Kh7 {[%clk 0:00:10.8]} 45. Kd3 {[%clk 0:00:22]} 45... Qf2 {[%clk 0:00:09.5]} 46.
Qf6 {[%clk 0:00:04.8]} 46... Qxg3+ {[%clk 0:00:09.6]} 47. Kc2 {[%clk 0:00:05.3]}
47... Qxf4 {[%clk 0:00:09.8]} 48. Qf7+ {[%clk 0:00:02.6]} 48... Kh6 {[%clk
0:00:09.3]} 49. Qf8+ {[%clk 0:00:02.7]} 49... Kh7 {[%clk 0:00:07.3]} 50. Qh8+
{[%clk 0:00:03.3]} 50... Kxh8 {[%clk 0:00:07]} 0-1